fUSD/lending_fUSD_20250125
["ID","MTS","AMOUNT","RATE_DAILY","PERIOD"]
[350350823,1737808244414,-500.0,0.00016986,2]
[350350824,1737808244423,-500.0,0.00016986,2]
[350350825,1737808244432,-1077.13,0.00016986,2]
[350350826,1737808244441,-1025.19,0.00016986,2]
[350350827,1737808244450,-500.0,0.00016986,2]
[350350828,1737808244459,-500.0,0.00016986,2]
[350350829,1737808244469,-500.0,0.00016986,2]
[350350830,1737808244478,-818.65,0.00016986,2]
[350350831,1737808244487,-1515.13,0.00016986,2]
[350350832,1737808244497,-500.0,0.00016986,2]
[350350833,1737808244506,-500.0,0.00016986,2]
[350350834,1737808244516,-1402.24,0.00016986,2]
[350350835,1737808244526,-500.0,0.00016986,2]
[350350836,1737808244536,-500.0,0.00016986,2]
[350350837,1737808244546,-500.0,0.00016986,2]
[350350838,1737808244555,-997.1,0.00016986,2]
[350350839,1737808244564,-770.62,0.00016986,2]
[350350840,1737808244574,-500.0,0.00016986,2]
[350350841,1737808244583,-500.0,0.00016986,2]
[350350842,1737808244593,-1167.67,0.00016986,2]
[350350843,1737808244603,-500.0,0.00016986,2]
[350350844,1737808244613,-500.0,0.00016986,2]
[350350845,1737808244623,-500.0,0.00016986,2]
[350350846,1737808244632,-970.28,0.00016986,2]
[350350847,1737808244643,-600.0,0.00017,2]
[350350848,1737808244653,-932.58035054,0.00017015,2]
[350350849,1737808244664,-250.0,0.0001702,2]
[350350850,1737808244674,-374.75,0.00017021,2]
[350350851,1737808244683,-500.0,0.00017021,2]
[350350852,1737808244692,-500.0,0.00017021,2]
[350350853,1737808244701,-500.0,0.00017021,2]
[350350854,1737808244711,-197.25240663,0.00017021,2]
[350350855,1737808244720,-500.0,0.00017021,2]
[350350856,1737808244730,-549.16,0.00017021,2]
[350350857,1737808244739,-500.0,0.00017021,2]
[350350858,1737808244748,-500.0,0.00017021,2]
[350350859,1737808244758,-835.27,0.00017021,2]
[350350860,1737808244767,-500.0,0.00017021,2]
[350350861,1737808244776,-500.0,0.00017021,2]
[350350862,1737808244786,-500.0,0.00017021,2]
[350350863,1737808244795,-500.0,0.00017021,2]
[350350864,1737808244804,-987.14,0.00017021,2]
[350350865,1737808244813,-1164.4,0.00017021,2]
[350350866,1737808244822,-879.49,0.00017021,2]
[350350867,1737808244831,-872.61,0.00017021,2]
[350350868,1737808244840,-500.0,0.00017021,2]
[350350869,1737808244850,-514.01,0.00017021,2]
[350350870,1737808244859,-500.0,0.00017021,2]
[350350871,1737808244868,-500.0,0.00017021,2]
[350350872,1737808244878,-1388.8,0.00017021,2]
[350350873,1737808244887,-1723.73,0.00017021,2]
[350350874,1737808244897,-500.0,0.00017021,2]
[350350875,1737808244907,-500.0,0.00017021,2]
[350350876,1737808244916,-512.42,0.00017021,2]
[350350877,1737808244926,-500.0,0.00017021,2]
[350350878,1737808244935,-500.0,0.00017021,2]
[350350879,1737808244945,-500.0,0.00017021,2]
[350350880,1737808244954,-500.0,0.00017021,2]
[350350881,1737808244964,-702.52,0.00017021,2]
[350350882,1737808244973,-500.0,0.00017021,2]
[350350883,1737808244983,-500.0,0.00017021,2]
[350350884,1737808244992,-500.0,0.00017021,2]
[350350885,1737808245002,-625.92,0.00017021,2]
[350350886,1737808245011,-500.0,0.00017021,2]
[350350887,1737808245020,-500.0,0.00017021,2]
[350350888,1737808245030,-500.0,0.00017021,2]
[350350889,1737808245039,-584.6,0.00017021,2]
[350350890,1737808245049,-500.0,0.00017021,2]
[350350891,1737808245058,-500.0,0.00017021,2]
[350350892,1737808245067,-1209.8,0.00017021,2]
[350350893,1737808245076,-500.0,0.00017021,2]
[350350894,1737808245085,-500.0,0.00017021,2]
[350350895,1737808245094,-500.0,0.00017021,2]
[350350896,1737808245103,-877.95,0.00017021,2]
[350350897,1737808245112,-500.0,0.00017021,2]
[350350898,1737808245123,-2396.23,0.00017021,2]
[350350899,1737808245132,-500.0,0.00017021,2]
[350350900,1737808245140,-500.0,0.00017021,2]
[350350901,1737808245150,-500.0,0.00017021,2]
[350350902,1737808245158,-729.77,0.00017021,2]
[350350903,1737808245168,-1283.92,0.00017021,2]
[350350904,1737808245178,-500.0,0.00017021,2]
[350350905,1737808245187,-500.0,0.00017021,2]
[350350906,1737808245196,-500.0,0.00017021,2]
[350350907,1737808245206,-500.0,0.00017021,2]
[350350908,1737808245215,-500.0,0.00017021,2]
[350350909,1737808245223,-347.28278402,0.00017021,2]
[350350910,1737808245232,-500.0,0.00017021,2]
[350350911,1737808245242,-2117.34,0.00017021,2]
[350350912,1737808245251,-1199.62,0.00017021,2]
[350350913,1737808245260,-7888.04893717,0.00017046,2]
[350350914,1737808245270,-250.0,0.00017117,2]
[350350915,1737808245280,-500.77087357,0.00017117,2]
[350350916,1737808245290,-500.0,0.00017121,2]
[350350917,1737808245299,-628.63,0.00017121,2]
[350350918,1737808245308,-1416.44,0.00017121,2]
[350350919,1737808245317,-500.0,0.00017121,2]
[350350920,1737808245326,-500.0,0.00017121,2]
[350350921,1737808245335,-500.0,0.00017121,2]
[350350922,1737808245344,-500.0,0.00017121,2]
[350350923,1737808245353,-1197.23,0.00017121,2]
[350350924,1737808245363,-1341.52,0.00017121,2]
[350350925,1737808245371,-500.0,0.00017121,2]
[350350926,1737808245380,-500.0,0.00017121,2]
[350350927,1737808245389,-500.0,0.00017121,2]
[350350928,1737808245399,-516.71,0.00017121,2]
[350350929,1737808245407,-500.0,0.00017121,2]
[350350930,1737808245416,-819.8,0.00017121,2]
[350350931,1737808245426,-500.0,0.00017121,2]
[350350932,1737808245435,-500.0,0.00017121,2]
[350350933,1737808245444,-500.0,0.00017121,2]
[350350934,1737808245453,-679.18,0.00017121,2]
[350350935,1737808245462,-1050.87,0.00017121,2]
[350350936,1737808245472,-500.0,0.00017121,2]
[350350937,1737808245481,-500.0,0.00017121,2]
[350350938,1737808245491,-1000.0,0.00017121,2]
[350350939,1737808245500,-884.7,0.00017121,2]
[350350940,1737808245510,-500.0,0.00017121,2]
[350350941,1737808245519,-1433.36,0.00017121,2]
[350350942,1737808245529,-1402.11,0.00017121,2]
[350350943,1737808245539,-874.74,0.00017123,2]
[350350944,1737808245548,-500.0,0.00017123,2]
[350350945,1737808245557,-500.0,0.00017123,2]
[350350946,1737808245567,-1077.13,0.00017123,2]
[350350947,1737808245576,-1025.19,0.00017123,2]
[350350948,1737808245585,-500.0,0.00017123,2]
[350350949,1737808245594,-500.0,0.00017123,2]
[350350950,1737808245603,-500.0,0.00017123,2]
[350350951,1737808245614,-818.65,0.00017123,2]
[350350952,1737808245623,-1515.13,0.00017123,2]
[350350953,1737808245632,-500.0,0.00017123,2]
[350350954,1737808245642,-500.0,0.00017123,2]
[350350955,1737808245651,-1402.24,0.00017123,2]
[350350956,1737808245661,-500.0,0.00017123,2]
[350350957,1737808245670,-484.07576994,0.00017123,2]
[350350959,1737808245679,-997.1,0.00017123,2]
[350350961,1737808245688,-770.62,0.00017123,2]
[350350962,1737808245697,-500.0,0.00017123,2]
[350350963,1737808245706,-500.0,0.00017123,2]
[350350964,1737808245715,-1167.67,0.00017123,2]
[350350965,1737808245724,-500.0,0.00017123,2]
[350350966,1737808245734,-500.0,0.00017123,2]
[350350967,1737808245743,-500.0,0.00017123,2]
[350350968,1737808245753,-970.28,0.00017123,2]
[350350969,1737808245762,-500.0,0.00017158,2]
[350350970,1737808245771,-500.0,0.00017158,2]
[350350971,1737808245781,-500.0,0.00017158,2]
[350350972,1737808245790,-500.0,0.00017158,2]
[350350973,1737808245799,-500.0,0.00017158,2]
[350350974,1737808245808,-835.27,0.00017158,2]
[350350975,1737808245818,-500.0,0.00017158,2]
[350350976,1737808245827,-500.0,0.00017158,2]
[350350977,1737808245836,-500.0,0.00017158,2]
[350350979,1737808245846,-500.0,0.00017158,2]
[350350981,1737808245855,-987.14,0.00017158,2]
[350350982,1737808245902,-1164.4,0.00017158,2]
[350350983,1737808245912,-879.49,0.00017158,2]
[350350984,1737808245920,-872.61,0.00017158,2]
[350350985,1737808245929,-500.0,0.00017158,2]
[350350986,1737808245938,-514.01,0.00017158,2]
[350350987,1737808245947,-500.0,0.00017158,2]
[350350988,1737808245956,-500.0,0.00017158,2]
[350350989,1737808245966,-1388.8,0.00017158,2]
[350350990,1737808245975,-1723.73,0.00017158,2]
[350350991,1737808245986,-268.9076311,0.00017158,2]
[350350992,1737808245996,-512.42,0.00017158,2]
[350350993,1737808246008,-500.0,0.00017158,2]
[350350994,1737808246018,-500.0,0.00017158,2]
[350350995,1737808246030,-500.0,0.00017158,2]
[350350996,1737808246039,-702.52,0.00017158,2]
[350350997,1737808246047,-500.0,0.00017158,2]
[350350998,1737808246058,-500.0,0.00017158,2]
[350350999,1737808246067,-500.0,0.00017158,2]
[350351000,1737808246077,-625.92,0.00017158,2]
[350351001,1737808246086,-500.0,0.00017158,2]
[350351002,1737808246096,-500.0,0.00017158,2]
[350351003,1737808246105,-500.0,0.00017158,2]
[350351004,1737808246114,-584.6,0.00017158,2]
[350351005,1737808246126,-500.0,0.00017158,2]
[350351006,1737808246135,-500.0,0.00017158,2]
[350351007,1737808246144,-1209.8,0.00017158,2]
[350351008,1737808246154,-500.0,0.00017158,2]
[350351009,1737808246163,-500.0,0.00017158,2]
[350351010,1737808246172,-877.95,0.00017158,2]
[350351011,1737808246182,-500.0,0.00017158,2]
[350351012,1737808246191,-500.0,0.00017158,2]
[350351013,1737808246200,-2396.23,0.00017158,2]
[350351014,1737808246209,-500.0,0.00017158,2]
[350351015,1737808246219,-500.0,0.00017158,2]
[350351016,1737808246228,-729.77,0.00017158,2]
[350351017,1737808246238,-1283.92,0.00017158,2]
[350351018,1737808246247,-297.29381965,0.00017158,2]
[350351019,1737808246257,-500.0,0.00017158,2]
[350351020,1737808246266,-500.0,0.00017158,2]
[350351021,1737808246276,-500.0,0.00017158,2]
[350351022,1737808246285,-500.0,0.00017158,2]
[350351023,1737808246295,-500.0,0.00017158,2]
[350351024,1737808246304,-2117.34,0.00017158,2]
[350351025,1737808246313,-1199.62,0.00017158,2]
[350351026,1737808246322,-1860.09,0.00017239,2]
[350351027,1737808246331,-500.0,0.00017258,2]
[350351028,1737808246339,-628.63,0.00017258,2]
[350351029,1737808246348,-1416.44,0.00017258,2]
[350351030,1737808246357,-500.0,0.00017258,2]
[350351031,1737808246366,-500.0,0.00017258,2]
[350351032,1737808246375,-500.0,0.00017258,2]
[350351033,1737808246384,-500.0,0.00017258,2]
[350351034,1737808246393,-1197.23,0.00017258,2]
[350351035,1737808246403,-1341.52,0.00017258,2]
[350351036,1737808246411,-500.0,0.00017258,2]
[350351037,1737808246421,-500.0,0.00017258,2]
[350351038,1737808246430,-500.0,0.00017258,2]
[350351039,1737808246440,-516.71,0.00017258,2]
[350351040,1737808246449,-500.0,0.00017258,2]
[350351041,1737808246458,-819.8,0.00017258,2]
[350351042,1737808246468,-500.0,0.00017258,2]
[350351043,1737808246477,-500.0,0.00017258,2]
[350351044,1737808246486,-679.18,0.00017258,2]
[350351045,1737808246495,-1050.87,0.00017258,2]
[350351047,1737808246504,-500.0,0.00017258,2]
[350351048,1737808246513,-500.0,0.00017258,2]
[350351049,1737808246522,-1000.0,0.00017258,2]
[350351050,1737808246534,-884.7,0.00017258,2]
[350351051,1737808246543,-500.0,0.00017258,2]
[350351052,1737808246552,-1433.36,0.00017258,2]
[350351053,1737808246561,-1402.11,0.00017258,2]
[350351054,1737808246570,-874.74,0.0001726,2]
[350351055,1737808246579,-414.07,0.0001726,2]
[350351056,1737808246588,-500.0,0.0001726,2]
[350351057,1737808246597,-1077.13,0.0001726,2]
[350351058,1737808246606,-1025.19,0.0001726,2]
[350351059,1737808246615,-500.0,0.0001726,2]
[350351060,1737808246624,-500.0,0.0001726,2]
[350351061,1737808246633,-500.0,0.0001726,2]
[350351062,1737808246642,-818.65,0.0001726,2]
[350351063,1737808246651,-1515.13,0.0001726,2]
[350351064,1737808246659,-500.0,0.0001726,2]
[350351065,1737808246668,-500.0,0.0001726,2]
[350351066,1737808246676,-1402.24,0.0001726,2]
[350351067,1737808246685,-500.0,0.0001726,2]
[350351068,1737808246694,-997.1,0.0001726,2]
[350351069,1737808246703,-770.62,0.0001726,2]
[350351070,1737808246711,-500.0,0.0001726,2]
[350351071,1737808246720,-500.0,0.0001726,2]
[350351072,1737808246729,-1167.67,0.0001726,2]
[350351073,1737808246737,-500.0,0.0001726,2]
[350351074,1737808246746,-500.0,0.0001726,2]
[350351075,1737808246755,-500.0,0.0001726,2]
[350351076,1737808246764,-970.28,0.0001726,2]
[350351077,1737808246773,-9973.13309601,0.00017278,2]
[350351078,1737808246783,-500.0,0.00017295,2]
[350351079,1737808246793,-500.0,0.00017295,2]
[350351080,1737808246802,-500.0,0.00017295,2]
[350351081,1737808246811,-214.35,0.00017295,2]
[350351082,1737808246820,-500.0,0.00017295,2]
[350351083,1737808246828,-835.27,0.00017295,2]
[350351084,1737808246838,-500.0,0.00017295,2]
[350351085,1737808246847,-500.0,0.00017295,2]
[350351086,1737808246855,-500.0,0.00017295,2]
[350351087,1737808246865,-500.0,0.00017295,2]
[350351088,1737808246875,-987.14,0.00017295,2]
[350351089,1737808246884,-1164.4,0.00017295,2]
[350351090,1737808246893,-879.49,0.00017295,2]
[350351091,1737808246902,-872.61,0.00017295,2]
[350351092,1737808246911,-500.0,0.00017295,2]
[350351093,1737808246921,-514.01,0.00017295,2]
[350351094,1737808246931,-500.0,0.00017295,2]
[350351095,1737808246941,-500.0,0.00017295,2]
[350351096,1737808246950,-1388.8,0.00017295,2]
[350351097,1737808246959,-1723.73,0.00017295,2]
[350351098,1737808246968,-512.42,0.00017295,2]
[350351099,1737808246977,-500.0,0.00017295,2]
[350351100,1737808246986,-500.0,0.00017295,2]
[350351101,1737808246996,-500.0,0.00017295,2]
[350351102,1737808247005,-702.52,0.00017295,2]
[350351103,1737808247015,-500.0,0.00017295,2]
[350351104,1737808247023,-500.0,0.00017295,2]
[350351105,1737808247034,-500.0,0.00017295,2]
[350351106,1737808247043,-625.92,0.00017295,2]
[350351107,1737808247052,-500.0,0.00017295,2]
[350351108,1737808247063,-500.0,0.00017295,2]
[350351109,1737808247074,-500.0,0.00017295,2]
[350351110,1737808247084,-584.6,0.00017295,2]
[350351111,1737808247095,-480.24916682,0.00017295,2]
[350351112,1737808247105,-337.26896104,0.00017295,2]
[350351113,1737808247116,-1209.8,0.00017295,2]
[350351114,1737808247129,-500.0,0.00017295,2]
[350351115,1737808247139,-500.0,0.00017295,2]
[350351116,1737808247148,-877.95,0.00017295,2]
[350351117,1737808247157,-500.0,0.00017295,2]
[350351118,1737808247167,-500.0,0.00017295,2]
[350351119,1737808247176,-2396.23,0.00017295,2]
[350351120,1737808247185,-500.0,0.00017295,2]
[350351121,1737808247195,-500.0,0.00017295,2]
[350351122,1737808247205,-729.77,0.00017295,2]
[350351123,1737808247214,-1283.92,0.00017295,2]
[350351124,1737808247223,-500.0,0.00017295,2]
[350351125,1737808247232,-617.68,0.00017295,2]
[350351126,1737808247241,-500.0,0.00017295,2]
[350351127,1737808247250,-500.0,0.00017295,2]
[350351128,1737808247259,-2117.34,0.00017295,2]
[350351129,1737808247268,-1199.62,0.00017295,2]
[350351130,1737808247279,-571.72464225,0.00017348,2]
[350351131,1737808247288,-500.0,0.00017395,2]
[350351132,1737808247297,-628.63,0.00017395,2]
[350351133,1737808247306,-1416.44,0.00017395,2]
[350351134,1737808247315,-500.0,0.00017395,2]
[350351135,1737808247326,-500.0,0.00017395,2]
[350351136,1737808247335,-500.0,0.00017395,2]
[350351137,1737808247344,-500.0,0.00017395,2]
[350351138,1737808247353,-1197.23,0.00017395,2]
[350351139,1737808247363,-1341.52,0.00017395,2]
[350351140,1737808247372,-598.5,0.00017395,2]
[350351141,1737808247382,-500.0,0.00017395,2]
[350351142,1737808247391,-500.0,0.00017395,2]
[350351143,1737808247400,-516.71,0.00017395,2]
[350351144,1737808247410,-500.0,0.00017395,2]
[350351145,1737808247419,-819.8,0.00017395,2]
[350351146,1737808247428,-500.0,0.00017395,2]
[350351147,1737808247437,-500.0,0.00017395,2]
[350351148,1737808247446,-679.18,0.00017395,2]
[350351149,1737808247456,-1050.87,0.00017395,2]
[350351150,1737808247465,-500.0,0.00017395,2]
[350351151,1737808247474,-500.0,0.00017395,2]
[350351152,1737808247483,-1000.0,0.00017395,2]
[350351153,1737808247493,-884.7,0.00017395,2]
[350351154,1737808247502,-500.0,0.00017395,2]
[350351155,1737808247511,-1433.36,0.00017395,2]
[350351156,1737808247520,-1402.11,0.00017395,2]
[350351157,1737808247531,-874.74,0.00017397,2]
[350351158,1737808247540,-500.0,0.00017397,2]
[350351159,1737808247549,-1077.13,0.00017397,2]
[350351160,1737808247559,-1025.19,0.00017397,2]
[350351161,1737808247568,-500.0,0.00017397,2]
[350351162,1737808247576,-500.0,0.00017397,2]
[350351163,1737808247586,-500.0,0.00017397,2]
[350351164,1737808247595,-818.65,0.00017397,2]
[350351165,1737808247603,-1515.13,0.00017397,2]
[350351166,1737808247612,-500.0,0.00017397,2]
[350351167,1737808247622,-500.0,0.00017397,2]
[350351168,1737808247631,-1402.24,0.00017397,2]
[350351169,1737808247640,-500.0,0.00017397,2]
[350351170,1737808247649,-997.1,0.00017397,2]
[350351171,1737808247658,-770.62,0.00017397,2]
[350351172,1737808247667,-500.0,0.00017397,2]
[350351173,1737808247676,-500.0,0.00017397,2]
[350351174,1737808247684,-1167.67,0.00017397,2]
[350351175,1737808247693,-500.0,0.00017397,2]
[350351176,1737808247702,-500.0,0.00017397,2]
[350351177,1737808247711,-500.0,0.00017397,2]
[350351178,1737808247720,-970.28,0.00017397,2]
[350351179,1737808247729,-500.0,0.00017432,2]
[350351180,1737808247738,-500.0,0.00017432,2]
[350351181,1737808247747,-500.0,0.00017432,2]
[350351182,1737808247756,-500.0,0.00017432,2]
[350351183,1737808247765,-835.27,0.00017432,2]
[350351184,1737808247774,-500.0,0.00017432,2]
[350351185,1737808247784,-500.0,0.00017432,2]
[350351186,1737808247792,-500.0,0.00017432,2]
[350351187,1737808247801,-987.14,0.00017432,2]
[350351188,1737808247810,-1164.4,0.00017432,2]
[350351189,1737808247819,-879.49,0.00017432,2]
[350351190,1737808247828,-872.61,0.00017432,2]
[350351191,1737808247837,-500.0,0.00017432,2]
[350351192,1737808247846,-514.01,0.00017432,2]
[350351193,1737808247855,-500.0,0.00017432,2]
[350351194,1737808247864,-1388.8,0.00017432,2]
[350351195,1737808247873,-1723.73,0.00017432,2]
[350351196,1737808247882,-512.42,0.00017432,2]
[350351197,1737808247891,-500.0,0.00017432,2]
[350351198,1737808247900,-500.0,0.00017432,2]
[350351199,1737808247910,-500.0,0.00017432,2]
[350351200,1737808247919,-702.52,0.00017432,2]
[350351201,1737808247928,-500.0,0.00017432,2]
[350351202,1737808247938,-500.0,0.00017432,2]
[350351203,1737808247946,-500.0,0.00017432,2]
[350351204,1737808247955,-625.92,0.00017432,2]
[350351205,1737808247964,-500.0,0.00017432,2]
[350351206,1737808247974,-500.0,0.00017432,2]
[350351207,1737808247983,-500.0,0.00017432,2]
[350351208,1737808247993,-584.6,0.00017432,2]
[350351209,1737808248002,-1209.8,0.00017432,2]
[350351210,1737808248011,-183.40898897,0.00017432,2]
[350351211,1737808248021,-500.0,0.00017432,2]
[350351212,1737808248031,-877.95,0.00017432,2]
[350351213,1737808248040,-500.0,0.00017432,2]
[350351214,1737808248049,-500.0,0.00017432,2]
[350351215,1737808248058,-2396.23,0.00017432,2]
[350351216,1737808248067,-500.0,0.00017432,2]
[350351217,1737808248076,-500.0,0.00017432,2]
[350351218,1737808248086,-729.77,0.00017432,2]
[350351219,1737808248095,-1283.92,0.00017432,2]
[350351220,1737808248105,-500.0,0.00017432,2]
[350351221,1737808248114,-500.0,0.00017432,2]
[350351222,1737808248125,-500.0,0.00017432,2]
[350351223,1737808248134,-2117.34,0.00017432,2]
[350351224,1737808248143,-1199.62,0.00017432,2]
[350351225,1737808248152,-500.0,0.00017532,2]
[350351226,1737808248162,-628.63,0.00017532,2]
[350351227,1737808248171,-1416.44,0.00017532,2]
[350351228,1737808248180,-530.10001756,0.00017532,2]
[350351229,1737808248190,-500.0,0.00017532,2]
[350351230,1737808248200,-500.0,0.00017532,2]
[350351231,1737808248209,-500.0,0.00017532,2]
[350351232,1737808248219,-1197.23,0.00017532,2]
[350351233,1737808248227,-1341.52,0.00017532,2]
[350351234,1737808248236,-500.0,0.00017532,2]
[350351235,1737808248245,-500.0,0.00017532,2]
[350351236,1737808248254,-516.71,0.00017532,2]
[350351237,1737808248263,-500.0,0.00017532,2]
[350351238,1737808248272,-819.8,0.00017532,2]
[350351239,1737808248284,-500.0,0.00017532,2]
[350351240,1737808248293,-500.0,0.00017532,2]
[350351241,1737808248302,-679.18,0.00017532,2]
[350351242,1737808248311,-1050.87,0.00017532,2]
[350351243,1737808248320,-500.0,0.00017532,2]
[350351244,1737808248330,-500.0,0.00017532,2]
[350351245,1737808248340,-1000.0,0.00017532,2]
[350351246,1737808248349,-884.7,0.00017532,2]
[350351247,1737808248359,-500.0,0.00017532,2]
[350351248,1737808248368,-1433.36,0.00017532,2]
[350351249,1737808248376,-1402.11,0.00017532,2]
[350351250,1737808248386,-874.74,0.00017534,2]
[350351251,1737808248396,-500.0,0.00017534,2]
[350351252,1737808248405,-1077.13,0.00017534,2]
[350351253,1737808248415,-1025.19,0.00017534,2]
[350351254,1737808248424,-500.0,0.00017534,2]
[350351255,1737808248434,-500.0,0.00017534,2]
[350351256,1737808248444,-500.0,0.00017534,2]
[350351257,1737808248453,-818.65,0.00017534,2]
[350351258,1737808248462,-1515.13,0.00017534,2]
[350351259,1737808248472,-500.0,0.00017534,2]
[350351260,1737808248481,-389.37376697,0.00017534,2]
[350351261,1737808248490,-1402.24,0.00017534,2]
[350351262,1737808248499,-500.0,0.00017534,2]
[350351263,1737808248508,-997.1,0.00017534,2]
[350351264,1737808248518,-770.62,0.00017534,2]
[350351265,1737808248530,-500.0,0.00017534,2]
[350351266,1737808248540,-500.0,0.00017534,2]
[350351267,1737808248550,-1167.67,0.00017534,2]
[350351268,1737808248560,-500.0,0.00017534,2]
[350351269,1737808248570,-500.0,0.00017534,2]
[350351270,1737808248580,-500.0,0.00017534,2]
[350351271,1737808248590,-970.28,0.00017534,2]
[350351272,1737808248600,-609.25876943,0.00017569,2]
[350351273,1737808248610,-500.0,0.00017569,2]
[350351274,1737808248619,-500.0,0.00017569,2]
[350351275,1737808248629,-500.0,0.00017569,2]
[350351276,1737808248639,-835.27,0.00017569,2]
[350351277,1737808248649,-500.0,0.00017569,2]
[350351278,1737808248659,-500.0,0.00017569,2]
[350351279,1737808248669,-500.0,0.00017569,2]
[350351280,1737808248679,-987.14,0.00017569,2]
[350351281,1737808248688,-1164.4,0.00017569,2]
[350351282,1737808248698,-879.49,0.00017569,2]
[350351283,1737808248708,-872.61,0.00017569,2]
[350351284,1737808248717,-500.0,0.00017569,2]
[350351285,1737808248727,-514.01,0.00017569,2]
[350351286,1737808248737,-412.24909304,0.00017569,2]
[350351287,1737808248747,-1388.8,0.00017569,2]
[350351288,1737808248757,-1723.73,0.00017569,2]
[350351289,1737808248766,-512.42,0.00017569,2]
[350351290,1737808248777,-500.0,0.00017569,2]
[350351291,1737808248788,-500.0,0.00017569,2]
[350351292,1737808248797,-500.0,0.00017569,2]
[350351293,1737808248807,-702.52,0.00017569,2]
[350351294,1737808248817,-500.0,0.00017569,2]
[350351295,1737808248826,-500.0,0.00017569,2]
[350351296,1737808248836,-500.0,0.00017569,2]
[350351297,1737808248845,-625.92,0.00017569,2]
[350351298,1737808248855,-500.0,0.00017569,2]
[350351299,1737808248864,-500.0,0.00017569,2]
[350351300,1737808248874,-500.0,0.00017569,2]
[350351301,1737808248884,-584.6,0.00017569,2]
[350351302,1737808248893,-1209.8,0.00017569,2]
[350351303,1737808248903,-500.0,0.00017569,2]
[350351304,1737808248912,-877.95,0.00017569,2]
[350351305,1737808248922,-511.21,0.00017569,2]
[350351306,1737808248931,-500.0,0.00017569,2]
[350351307,1737808248940,-2396.23,0.00017569,2]
[350351308,1737808248950,-500.0,0.00017569,2]
[350351309,1737808248959,-500.0,0.00017569,2]
[350351310,1737808248969,-729.77,0.00017569,2]
[350351311,1737808248978,-1283.92,0.00017569,2]
[350351312,1737808248988,-500.0,0.00017569,2]
[350351313,1737808248997,-500.0,0.00017569,2]
[350351314,1737808249007,-500.0,0.00017569,2]
[350351315,1737808249017,-2117.34,0.00017569,2]
[350351316,1737808249027,-1199.62,0.00017569,2]
[350351317,1737808249037,-1000.0,0.00017602,2]
[350351318,1737808249051,-500.0,0.00017669,2]
[350351319,1737808249061,-628.63,0.00017669,2]
[350351320,1737808249070,-1416.44,0.00017669,2]
[350351321,1737808249080,-500.0,0.00017669,2]
[350351322,1737808249090,-500.0,0.00017669,2]
[350351323,1737808249099,-500.0,0.00017669,2]
[350351324,1737808249108,-1197.23,0.00017669,2]
[350351325,1737808249117,-1341.52,0.00017669,2]
[350351326,1737808249131,-319.33388806,0.00017669,2]
[350351327,1737808249141,-500.0,0.00017669,2]